bitfinex-derivatives/quotes_BNBF0:USTF0_20251010
["timestamp","ask_amount","ask_price","bid_price","bid_amount"]
[1760134638451,7.2802004,1093.0,1085.8,0.57983471]
[1760134638650,7.2802004,1093.0,1085.9,0.54995156]
[1760134638851,9.44492899,1093.3,1085.9,0.57983471]
[1760134639146,9.44492899,1093.3,1085.9,1.14346517]
[1760134639348,2.16472859,1093.2,1085.8,0.57983471]
[1760134639548,2.16472859,1093.2,1085.0,0.57983471]
[1760134639749,2.16472859,1093.2,1085.2,0.57983471]
[1760134639948,4.2824708,1093.3,1085.6,0.57983471]
[1760134640150,2.9977296,1094.1,1086.3,0.57983471]
[1760134640353,2.16472859,1094.2,1086.5,0.57983471]
[1760134640554,2.9977296,1095.4,1087.8,0.57983471]
[1760134640851,2.9977296,1095.4,1088.0,0.57983471]
[1760134641050,2.9977296,1095.4,1085.8,1.8603991]
[1760134641051,2.9977296,1095.4,1087.4,0.57983471]
[1760134641348,2.9977296,1095.4,1087.0,0.57983471]
[1760134641550,2.9977296,1095.4,1086.5,0.57983471]
[1760134641753,2.9977296,1093.0,1086.6,0.6286922]
[1760134641950,2.9977296,1093.0,1086.7,0.6286922]
[1760134642147,2.9977296,1093.0,1085.9,0.57983471]
[1760134642551,2.19145382,1093.3,1086.2,0.57983471]
[1760134642949,2.19145382,1093.5,1086.5,0.57983471]
[1760134643154,2.19145382,1093.9,1086.5,0.57983471]
[1760134643850,2.19145382,1093.9,1086.2,0.74415966]
[1760134644055,2.19145382,1092.3,1085.0,0.60009687]
[1760134644351,2.19145382,1092.3,1085.1,0.5705528]
[1760134644650,2.18894097,1092.4,1083.9,0.60009687]
[1760134645050,7.37812439,1092.8,1084.3,0.60009687]
[1760134645255,2.18894097,1092.7,1084.1,0.60009687]
[1760134645556,4.38039479,1092.5,1082.8,4.46495796]
[1760134645754,8.66286559,1092.6,1082.8,4.46495796]
[1760134645955,2.18894097,1092.3,1082.8,4.46495796]
[1760134646255,7.37812439,1092.4,1082.6,0.74415966]
[1760134646456,7.37812439,1092.4,1079.7,3.7207983]
[1760134646457,2.18894097,1092.2,1083.1,0.60441891]
[1760134646653,4.38039479,1092.1,1083.0,0.60441891]
[1760134646850,4.38039479,1092.3,1083.2,0.60441891]
[1760134647155,7.37812439,1092.3,1083.2,0.60441891]
[1760134647556,7.37812439,1092.3,1084.4,0.60441891]
[1760134647557,5.18918342,1092.3,1084.4,0.60441891]
[1760134647753,9.47165422,1092.3,1084.5,0.54794366]
[1760134647955,9.47165422,1092.3,1083.6,0.60441891]
[1760134648161,2.9977296,1091.2,1083.2,0.60441891]
[1760134648362,5.18918342,1091.2,1083.3,1.15043975]
[1760134648558,5.18918342,1091.4,1084.0,0.60441891]
[1760134648961,5.18918342,1091.4,1084.1,0.54602084]
[1760134649159,5.18918342,1091.4,1084.2,0.58850334]
[1760134649359,2.9977296,1091.4,1084.3,0.58850334]
[1760134649558,2.9977296,1091.4,1084.4,0.58850334]
[1760134649759,2.19145382,1091.6,1083.4,0.60492208]
[1760134649961,2.19145382,1090.7,1083.5,0.56973949]
[1760134650161,2.19145382,1090.7,1082.9,0.60492208]
[1760134650461,2.19145382,1090.7,1083.0,0.56884161]
[1760134650764,2.19145382,1090.5,1083.1,0.56884161]
[1760134651060,2.19145382,1090.5,1083.2,0.56884161]
[1760134651264,2.19145382,1090.3,1083.3,0.56884161]
[1760134651861,2.19145382,1090.3,1082.3,1.1162394]
[1760134652066,4.2824708,1091.3,1082.4,0.60212771]
[1760134652262,6.45994428,1091.3,1082.9,0.60569762]
[1760134652467,6.45994428,1091.3,1083.0,1.20782533]
[1760134652664,2.17747348,1089.9,1082.4,0.60569762]
[1760134652965,2.17747348,1090.0,1082.6,0.60569762]
[1760134653163,2.17747348,1090.0,1082.7,0.6026085]
[1760134653368,2.17747348,1090.0,1082.0,0.60569762]
[1760134653563,2.17747348,1089.4,1082.1,0.61321159]
[1760134653765,2.17747348,1089.8,1082.4,0.60569762]
[1760134653965,2.17747348,1089.8,1082.5,0.61321159]
[1760134654166,2.17747348,1089.8,1081.6,0.60569762]
[1760134654469,2.17747348,1089.5,1081.7,0.59099617]
[1760134654769,5.17520308,1089.5,1081.7,0.59099617]
[1760134654967,5.17520308,1089.5,1080.2,2.01899209]
[1760134654968,2.17747348,1090.3,1082.4,0.60569762]
[1760134655167,2.17747348,1090.3,1082.5,0.59099617]
[1760134655471,2.17747348,1090.3,1082.6,0.59099617]
[1760134655667,2.17747348,1090.3,1082.2,0.60569762]
[1760134655868,2.17747348,1090.3,1082.3,0.58998815]
[1760134656068,5.17520308,1090.2,1082.4,0.58998815]
[1760134656267,5.17520308,1090.2,1082.8,0.60569762]
[1760134656572,2.9977296,1090.2,1082.9,1.28700708]
[1760134656769,2.9977296,1090.2,1083.0,0.68130946]
[1760134657068,2.9977296,1090.2,1083.1,0.68130946]
[1760134657270,4.2824708,1090.6,1081.2,0.60569762]
[1760134657969,4.2824708,1092.2,1081.4,0.60569762]
[1760134658274,2.14993795,1089.1,1080.3,0.60569762]
[1760134658569,2.14993795,1089.1,1080.4,1.2104548]
[1760134658773,8.5649417,1093.7,1078.0,2.6045588]
[1760134658774,2.14993795,1090.0,1081.1,0.60569762]
[1760134659069,2.14993795,1090.4,1082.4,0.60569762]
[1760134659273,2.14993795,1091.2,1082.5,0.60475718]
[1760134659573,2.14993795,1091.2,1081.9,0.80759683]
[1760134659574,2.14993795,1091.2,1081.9,0.60569762]
[1760134659871,2.14993795,1090.7,1082.0,0.56654871]
[1760134660173,2.14993795,1090.6,1082.0,1.17224633]
[1760134660370,2.14993795,1091.1,1082.7,0.60569762]
[1760134660670,2.14993795,1091.1,1082.1,0.60569762]
[1760134660869,2.14993795,1091.1,1082.2,1.20718006]
[1760134661069,2.14993795,1091.1,1082.3,0.60148244]
[1760134661369,3.00991313,1090.1,1080.9,0.60569762]
[1760134661573,3.00991313,1090.1,1081.0,0.54963303]
[1760134661870,3.00991313,1090.1,1080.1,0.60569762]
[1760134662071,2.14993795,1088.8,1080.2,0.55058023]
[1760134662270,2.14993795,1089.0,1080.3,0.55058023]
[1760134662471,2.14993795,1089.2,1080.4,0.55058023]
[1760134662673,2.14993795,1089.2,1080.5,0.55058023]
[1760134662870,2.14993795,1089.2,1080.0,0.60569762]
[1760134663071,2.14993795,1088.9,1079.7,0.60569762]
[1760134663370,2.14993795,1088.9,1079.8,0.54076662]
[1760134663570,2.14993795,1088.8,1079.9,0.54076662]
[1760134663771,2.14993795,1088.8,1080.0,0.54076662]
[1760134663975,2.14993795,1088.8,1079.5,0.60569762]
[1760134664176,2.14993795,1088.7,1079.5,0.60569762]
[1760134664374,2.14993795,1088.7,1079.6,0.54034702]
[1760134664571,2.14993795,1088.7,1079.7,0.54034702]
[1760134664774,2.14993795,1088.5,1079.0,0.60569762]
[1760134664972,2.14993795,1088.5,1079.1,1.13888091]
[1760134665276,2.14993795,1088.6,1079.3,0.60569762]
[1760134665470,2.14993795,1088.6,1079.4,0.53318329]
[1760134665676,2.14993795,1088.6,1079.5,0.53318329]
[1760134665872,5.15985108,1088.4,1079.1,0.60569762]
[1760134666076,5.15985108,1088.4,1079.2,0.52779772]
[1760134666273,5.15985108,1088.4,1078.4,1.21139525]
[1760134666274,5.15985108,1088.4,1078.7,0.60569762]
[1760134666478,3.00991313,1088.4,1079.2,0.60569762]
[1760134666775,3.00991313,1088.4,1079.3,0.54679866]
[1760134667280,3.00991313,1088.4,1078.8,0.80759683]
[1760134667476,3.00991313,1088.4,1076.6,2.01899209]
[1760134671177,2.1267863,1089.5,1079.7,0.60516666]
[1760134671380,2.1267863,1089.5,1079.8,0.61171806]
[1760134671676,2.1267863,1089.5,1079.9,0.61171806]
[1760134671874,2.1267863,1090.0,1079.1,0.60516666]
[1760134672074,2.1267863,1090.0,1079.2,1.21410091]
[1760134672275,2.9775009,1089.7,1079.8,0.60516666]
[1760134672578,2.9775009,1089.7,1079.9,0.60893425]
[1760134672779,2.9775009,1089.7,1080.0,0.60893425]
[1760134672979,2.9775009,1089.7,1080.1,0.60893425]
[1760134673280,2.9775009,1089.7,1079.3,0.60516666]
[1760134673479,2.9775009,1089.2,1079.5,0.60516666]
[1760134673680,2.9775009,1090.6,1079.7,0.60516666]
[1760134673880,2.9775009,1090.6,1079.8,0.65204231]
[1760134674081,2.9775009,1090.6,1079.2,0.60516666]
[1760134674276,2.9775009,1090.6,1079.3,0.65034562]
[1760134674480,2.9775009,1090.6,1079.4,0.65034562]
[1760134674680,2.9775009,1091.7,1079.9,0.60516666]
[1760134674883,0.15985521,1091.3,1080.0,0.65034562]
[1760134675182,2.9775009,1091.7,1080.1,1.25551228]
[1760134675482,7.2047734,1089.0,1078.4,2.0172222]
[1760134675684,7.2047734,1089.0,1077.4,0.80688888]
[1760134675982,2.11363625,1089.3,1077.7,0.80688888]
[1760134676182,4.2272725,1089.6,1078.0,0.80688888]
[1760134676382,2.11363625,1089.6,1080.4,0.59578079]
[1760134676579,2.11363625,1089.6,1080.5,0.60270464]
[1760134676783,2.9775009,1089.8,1080.6,0.60270464]
[1760134677080,2.11363625,1090.7,1080.7,0.60143938]
[1760134677284,2.11363625,1091.2,1081.2,0.59578079]
[1760134677581,2.9775009,1091.6,1081.3,0.59485084]
[1760134677785,2.11363625,1092.7,1081.6,0.59578079]
[1760134677984,2.11363625,1092.7,1081.7,0.59485084]
[1760134678185,2.11363625,1092.7,1081.8,0.59485084]
[1760134678381,2.11363625,1092.5,1081.0,0.59578079]
[1760134678582,2.11363625,1092.5,1081.1,1.18605932]
[1760134678789,2.11363625,1091.7,1081.2,0.59027853]
[1760134679083,2.11363625,1091.7,1080.5,1.2103333]
[1760134679084,2.11363625,1091.7,1080.5,0.59578079]
[1760134679280,2.11363625,1090.3,1080.6,0.58568741]
[1760134679482,2.11363625,1090.9,1080.7,0.58568741]
[1760134679786,2.11363625,1090.9,1080.9,0.59578079]
[1760134679985,2.11363625,1090.9,1080.7,0.80688888]
[1760134680283,2.11363625,1090.9,1080.8,0.57406189]
[1760134680482,2.11363625,1090.9,1080.9,0.57406189]
[1760134680682,2.11363625,1090.7,1081.1,0.58079147]
[1760134680983,2.11363625,1091.1,1081.3,0.58079147]
[1760134681186,2.11363625,1091.1,1081.4,0.57406189]
[1760134681382,2.11363625,1090.9,1082.0,0.58079147]
[1760134681686,4.2535727,1093.5,1082.9,0.58079147]
[1760134682181,4.2535727,1093.5,1082.6,1.38095077]
[1760134682182,4.2535727,1093.5,1082.6,0.58079147]
[1760134682383,2.9599272,1092.0,1081.9,0.58079147]
[1760134682587,2.9599272,1092.0,1082.0,0.60651272]
[1760134682788,2.9599272,1092.4,1082.1,1.18569312]
[1760134682988,2.9599272,1092.4,1081.8,0.58079147]
[1760134683287,2.9599272,1092.4,1081.5,0.58079147]
[1760134683488,2.1165385,1091.4,1080.7,0.58079147]
[1760134683690,2.1165385,1090.9,1081.3,0.58079147]
[1760134683889,2.1165385,1090.9,1081.4,0.57525169]
[1760134684087,2.1165385,1090.9,1081.5,0.57525169]
[1760134684286,2.1165385,1090.8,1081.6,0.57525169]
[1760134684489,2.9599272,1091.5,1081.9,0.58079147]
[1760134684787,2.9599272,1092.6,1082.2,0.58079147]
[1760134685189,2.9599272,1092.6,1082.0,0.58079147]
[1760134685490,2.1242442,1091.0,1081.0,0.58079147]
[1760134685691,2.1242442,1091.3,1081.2,0.58079147]
[1760134686090,2.1242442,1091.3,1080.9,0.80688888]
[1760134686290,2.1242442,1091.3,1079.9,2.0172222]
[1760134689890,0.15943264,1093.7,1079.9,1.1746375]
[1760134689891,4.2816827,1090.4,1079.9,1.1746375]
[1760134690095,2.1408413,1089.5,1080.6,0.58731879]
[1760134690290,2.1408413,1089.5,1080.7,0.59067603]
[1760134690495,2.1408413,1089.8,1080.8,0.59067603]
[1760134690693,2.1408413,1089.8,1080.9,0.59067603]
[1760134690995,2.1408413,1090.9,1081.3,0.58731879]
[1760134691191,2.1408413,1090.9,1081.4,1.17799482]
[1760134691491,2.9971779,1091.6,1081.3,0.58731879]
[1760134691692,2.9971779,1091.6,1081.5,0.58731879]
[1760134691990,2.9971779,1091.6,1081.1,1.1746375]
[1760134691991,2.9971779,1091.4,1080.8,0.58731879]
[1760134692295,2.9971779,1091.4,1080.2,0.58731879]
[1760134692495,2.9971779,1091.4,1080.5,0.58731879]
[1760134692690,2.9971779,1091.4,1080.2,0.78309172]
[1760134692691,2.9971779,1091.4,1080.6,0.61278001]
[1760134692890,2.1468864,1088.4,1079.7,0.58731879]
[1760134693094,2.1468864,1088.5,1079.9,0.58731879]
[1760134693295,2.1468864,1088.8,1080.0,1.1826576]
[1760134693493,2.1468864,1088.8,1080.1,0.59533881]
[1760134693790,2.1468864,1088.9,1080.3,0.58731879]
[1760134693991,2.1468864,1088.9,1080.4,0.59533881]
[1760134694196,6.8506924,1094.6,1080.2,0.58731879]
[1760134694197,2.1468864,1089.7,1080.8,0.58731879]
[1760134694492,2.1468864,1090.3,1081.5,0.58731879]
[1760134694692,2.1468864,1090.3,1081.6,0.59533881]
[1760134694902,2.1468864,1090.3,1081.7,0.59533881]
[1760134695091,2.1468864,1089.5,1081.3,0.58731879]
[1760134695491,2.1468864,1089.5,1081.4,0.5867947]
[1760134695692,2.1468864,1090.9,1081.5,0.5867947]
[1760134695993,2.1468864,1090.9,1081.6,0.5867947]
[1760134696199,2.1468864,1089.6,1081.1,0.58213156]
[1760134696393,2.1468864,1089.8,1081.6,0.58213156]
[1760134696693,2.1468864,1091.4,1081.8,0.58213156]
[1760134696895,2.1468864,1091.4,1082.0,0.58213156]
[1760134697096,2.1468864,1090.3,1082.4,0.58213156]
[1760134697297,2.1468864,1090.3,1082.5,1.16630824]
[1760134697498,2.1468864,1090.3,1081.7,0.58213156]
[1760134697695,2.9971779,1090.5,1081.8,0.58620424]
[1760134697899,2.9971779,1090.5,1081.5,0.58213156]
[1760134698095,2.9971779,1089.7,1081.6,0.58593894]
[1760134698394,2.9971779,1089.7,1081.4,0.58213156]
[1760134698395,2.1468864,1089.9,1081.7,1.1680705]
[1760134698595,2.1468864,1089.9,1081.9,0.58213156]
[1760134698794,2.1468864,1089.9,1082.0,0.58213156]
[1760134698996,4.2816827,1091.2,1083.3,0.58213156]
[1760134699200,6.8506924,1092.4,1083.8,0.58213156]
[1760134699497,6.8506924,1092.4,1083.4,0.58213156]
[1760134699695,6.8506924,1092.4,1082.9,0.58213156]
[1760134699896,6.8506924,1092.4,1083.0,0.65725281]
[1760134700098,3.03592731,1090.0,1082.2,0.58213156]
[1760134700296,3.03592731,1090.0,1082.3,1.20698698]
[1760134700498,3.03592731,1090.5,1082.6,0.58213156]
[1760134700801,3.03592731,1090.9,1083.4,0.58213156]
[1760134701097,5.20895253,1090.9,1083.5,0.62485542]
[1760134701301,5.20895253,1090.9,1082.8,0.78309172]
[1760134701302,3.03592731,1092.2,1084.7,0.58213156]
[1760134701600,3.03592731,1092.4,1085.2,0.58213156]
[1760134701799,3.03592731,1093.0,1085.4,0.58213156]
[1760134701997,4.2816827,1094.9,1086.2,0.58213156]
[1760134702196,4.2816827,1095.8,1086.5,1.75676906]
[1760134702402,4.2816827,1095.8,1087.0,0.58213156]
[1760134702703,4.2816827,1095.8,1087.2,0.58213156]
[1760134702903,4.2816827,1095.8,1086.6,0.58213156]
[1760134703200,0.15894149,1097.1,1087.5,0.58213156]
[1760134703501,0.15894149,1097.1,1087.4,0.58213156]
[1760134703701,3.0362056,1098.0,1086.8,0.58213156]
[1760134703905,0.15885442,1097.2,1086.9,0.62614379]
[1760134704100,0.15885442,1097.2,1087.4,0.58213156]
[1760134704302,4.2816827,1098.6,1087.6,0.58213156]
[1760134704501,0.15878339,1098.1,1088.0,0.58213156]
[1760134704702,0.15878339,1098.1,1088.1,1.20827535]
[1760134705005,0.15878339,1098.1,1088.2,0.62614379]
[1760134705203,0.15878339,1098.1,1087.8,0.58213156]
[1760134705408,0.15878339,1098.1,1087.4,0.58213156]
[1760134705707,0.15878339,1098.1,1087.5,0.69078829]
[1760134705909,0.15878339,1098.1,1087.1,0.58213156]
[1760134706105,0.15878339,1098.1,1086.7,0.58213156]
[1760134706106,4.3178779,1095.8,1086.7,0.58213156]
[1760134706306,4.3178779,1095.8,1086.3,0.58213156]
[1760134706506,4.3178779,1095.8,1086.4,0.66763088]
[1760134706710,4.3178779,1095.8,1086.5,0.66763088]
[1760134706906,4.3178779,1095.8,1086.6,0.66763088]
[1760134707107,4.3178779,1095.8,1086.0,0.58213156]
[1760134707608,4.3178779,1095.8,1085.7,0.78309172]
[1760134707912,0.15878339,1098.1,1079.9,7.8309172]
[1760134709713,0.1592058,1097.9,1087.9,0.563005]
[1760134710009,4.2868667,1098.2,1088.0,0.66460301]
[1760134710316,0.15881346,1097.3,1087.0,0.563005]
[1760134710508,0.15881346,1097.3,1086.7,0.563005]
[1760134710710,0.15881346,1097.3,1086.8,0.66175156]
[1760134710910,0.15881346,1097.3,1085.8,0.563005]
[1760134711208,0.15881346,1097.3,1085.3,0.563005]
[1760134711410,0.15881346,1097.3,1085.1,0.66627656]
[1760134711713,0.15881346,1097.3,1084.8,0.563005]
[1760134712009,4.2868667,1093.7,1084.2,0.563005]
[1760134712208,4.2868667,1095.8,1084.4,0.563005]
[1760134712410,4.2868667,1095.8,1084.4,0.66616293]
[1760134712607,4.2868667,1095.8,1084.5,0.66616293]
[1760134712809,4.2868667,1095.8,1084.6,0.66616293]
[1760134713014,4.2868667,1095.8,1084.7,0.66616293]
[1760134713211,4.2868667,1095.8,1084.3,0.563005]
[1760134713413,4.2868667,1095.8,1084.4,0.67230309]
[1760134713609,4.2868667,1095.8,1084.1,0.563005]
[1760134713910,4.2868667,1095.8,1084.2,1.23569928]
[1760134714113,4.2868667,1095.8,1083.9,1.12601]
[1760134714114,4.2868667,1095.8,1084.6,0.563005]
[1760134714310,4.2868667,1095.8,1084.7,0.67269428]
[1760134714512,4.2868667,1094.7,1084.0,0.563005]
[1760134714714,4.2868667,1094.7,1084.1,0.563005]
[1760134714912,4.2868667,1095.5,1084.6,0.563005]
[1760134715111,4.2868667,1095.4,1085.1,0.563005]
[1760134715717,4.2868667,1095.4,1084.8,0.75067334]
[1760134715914,4.2868667,1095.4,1084.9,1.25998784]
[1760134716118,4.2868667,1095.4,1085.0,1.25998784]
[1760134716313,4.2868667,1095.4,1085.1,0.67717332]
[1760134716613,4.2868667,1095.4,1083.6,0.58281452]
[1760134716814,4.2868667,1095.4,1083.7,0.67786268]
[1760134717013,4.2868667,1095.4,1083.8,0.67786268]
[1760134717214,4.2868667,1095.4,1083.9,0.67786268]
[1760134717414,4.2868667,1095.4,1084.0,0.67786268]
[1760134717619,4.2868667,1095.4,1084.1,0.67786268]
[1760134717815,4.2868667,1094.0,1084.2,0.67786268]
[1760134718015,4.2868667,1094.0,1084.3,0.68043881]
[1760134718221,4.2868667,1094.3,1084.4,0.67944162]
[1760134718421,4.2868667,1094.3,1083.9,0.58281452]
[1760134718622,4.2868667,1094.3,1084.0,0.67992483]
[1760134718819,4.2868667,1094.3,1084.1,0.67992483]
[1760134719018,4.2868667,1094.3,1083.7,0.58281452]
[1760134719220,4.2868667,1094.3,1083.8,0.67798321]
[1760134719417,4.2868667,1094.3,1083.9,0.67798321]
[1760134719720,4.2868667,1094.3,1083.4,0.58281452]
[1760134720022,4.2868667,1094.3,1083.5,0.67677233]
[1760134720222,4.2868667,1094.3,1083.7,0.58281452]
[1760134720422,4.2868667,1094.5,1083.8,1.25958685]
[1760134720624,4.2868667,1094.5,1083.9,0.67677233]
[1760134720819,4.2868667,1094.2,1084.5,0.58281452]
[1760134721021,4.2868667,1094.2,1084.6,0.67677233]
[1760134721318,4.2868667,1094.2,1084.7,0.67677233]
[1760134721524,4.2868667,1094.2,1084.2,0.58281452]
[1760134722019,4.2868667,1094.2,1083.9,0.75067334]
[1760134722020,4.2868667,1094.2,1083.5,1.12601]
[1760134722224,4.2868667,1094.2,1083.8,0.57147264]
[1760134722421,4.2868667,1094.2,1083.9,0.67040801]
[1760134722620,4.2868667,1094.2,1084.0,0.67040801]
[1760134722824,4.2868667,1094.2,1084.1,0.67040801]
[1760134723120,4.2868667,1094.2,1084.2,0.67040801]
[1760134723422,4.2868667,1094.2,1083.7,0.57147264]
[1760134723621,4.2868667,1093.4,1083.7,0.57147264]
[1760134723821,4.2868667,1093.4,1083.8,0.66999121]
[1760134724021,4.2868667,1093.4,1083.9,0.66999121]
[1760134724226,4.2868667,1093.4,1084.0,0.66999121]
[1760134724528,4.2868667,1093.4,1084.1,0.68664313]
[1760134724727,4.2868667,1093.4,1084.2,0.68664313]
[1760134724921,4.2868667,1093.4,1083.9,0.57147264]
[1760134725126,4.2868667,1093.4,1084.0,0.68264766]
[1760134725427,4.2868667,1093.4,1083.4,0.57147264]
[1760134725628,4.2868667,1093.4,1083.6,0.57147264]
[1760134725823,4.2868667,1094.0,1083.7,0.68083884]
[1760134726027,4.2868667,1094.0,1083.8,0.68083884]
[1760134726228,4.2868667,1094.0,1082.9,0.57147264]
[1760134726527,4.2868667,1094.0,1082.3,0.57147264]
[1760134726727,4.2868667,1094.0,1082.2,0.57147264]
[1760134726927,6.8589867,1093.0,1082.3,0.57147264]
[1760134727126,6.8589867,1093.0,1082.5,0.57147264]
[1760134727326,6.8589867,1093.0,1082.5,0.67447776]
[1760134727526,6.8589867,1093.0,1082.6,0.67447776]
[1760134727924,6.8589867,1093.0,1081.8,0.76196352]
[1760134728228,6.8589867,1093.0,1082.1,0.58284164]
[1760134728429,4.2868667,1091.9,1082.2,0.66592866]
[1760134728627,4.2868667,1091.9,1082.3,0.66592866]
[1760134728824,4.2868667,1091.9,1082.4,0.66783218]
[1760134729029,4.2868667,1091.9,1082.5,0.66783218]
[1760134729330,4.2868667,1091.9,1082.0,0.58284164]
[1760134729731,4.2868667,1091.8,1082.3,0.58284164]
[1760134730231,4.2868667,1092.9,1083.0,0.58284164]
[1760134730427,4.2868667,1092.9,1083.2,0.58284164]
[1760134730726,4.2868667,1093.7,1083.3,1.25004037]
[1760134730928,4.2868667,1093.7,1083.4,0.66719873]
[1760134731130,4.2868667,1093.7,1083.0,0.58284164]
[1760134731331,4.2868667,1093.7,1082.4,1.14294528]
[1760134731332,4.2868667,1093.7,1082.4,0.58284164]
[1760134731626,4.2868667,1093.7,1082.5,1.24808608]
[1760134731834,4.2868667,1093.7,1082.6,0.66524444]
[1760134732134,4.2868667,1093.7,1082.7,0.66524444]
[1760134732433,4.2868667,1093.7,1082.8,0.66524444]
[1760134732633,4.2868667,1093.7,1082.3,0.58284164]
[1760134732933,4.2868667,1091.6,1081.6,0.58284164]
[1760134733337,4.2868667,1091.6,1081.7,0.66179956]
[1760134733635,4.2868667,1091.6,1081.3,0.58284164]
[1760134734038,4.2868667,1091.6,1081.4,0.58284164]
[1760134734232,4.2868667,1091.6,1081.5,0.58284164]
[1760134734533,4.2868667,1091.6,1081.6,0.65137599]
[1760134734733,4.2868667,1091.6,1081.7,0.65137599]
[1760134735034,4.2868667,1091.6,1081.8,1.23421763]
[1760134735538,4.2868667,1091.6,1080.6,1.8766833]
[1760134740638,4.3186483,1091.7,1082.1,0.59934221]
[1760134740936,4.3186483,1091.7,1082.2,0.65477056]
[1760134741136,4.3186483,1091.7,1082.3,0.65477056]
[1760134741340,3.0228205,1090.4,1082.4,0.65477056]
[1760134741537,3.0228205,1090.4,1081.9,0.59934221]
[1760134741737,3.0228205,1090.4,1081.1,0.59934221]
[1760134742040,3.0228205,1090.4,1081.2,0.6486359]
[1760134742341,3.0228205,1088.4,1080.3,0.59934221]
[1760134742537,3.0228205,1088.4,1080.4,1.23512796]
[1760134742737,3.0228205,1089.8,1080.9,0.79912295]
[1760134742940,3.0228205,1089.5,1081.1,0.59934221]
[1760134743338,3.0228205,1089.5,1080.4,0.59934221]
[1760134743537,3.0228205,1089.5,1080.5,0.63569567]
[1760134743742,3.0228205,1089.5,1080.0,0.59934221]
[1760134744041,3.0228205,1089.6,1080.0,0.63490824]
[1760134744244,3.0228205,1089.6,1079.5,0.59934221]
[1760134744441,3.0228205,1089.6,1079.6,1.23666171]
[1760134744740,3.0228205,1089.6,1079.7,0.6373195]
[1760134744938,3.0228205,1089.6,1079.3,0.59934221]
[1760134745138,3.0228205,1088.4,1078.8,0.59934221]
[1760134745338,3.0228205,1089.2,1079.1,0.59934221]
[1760134745539,3.0228205,1089.2,1079.5,0.59934221]
[1760134745941,3.0228205,1089.2,1079.2,0.79912295]
[1760134746240,3.0228205,1089.6,1080.6,0.59790236]
[1760134746436,3.0228205,1089.6,1080.7,0.61703041]
[1760134746638,3.0228205,1089.6,1080.8,1.21493277]
[1760134746940,3.0228205,1090.6,1081.1,0.59790236]
[1760134747138,3.0228205,1090.6,1081.2,0.61703041]
[1760134747341,3.0228205,1091.7,1081.3,1.21493277]
[1760134747637,3.0228205,1092.0,1081.7,0.59790236]
[1760134747841,3.0228205,1092.0,1081.8,0.61703041]
[1760134748137,3.0228205,1092.0,1081.2,0.59790236]
[1760134748341,3.43695931,1088.6,1079.5,0.59790236]
[1760134748542,3.43695931,1089.9,1080.7,0.59790236]
[1760134748742,1.28885974,1089.9,1080.8,0.51360887]
[1760134748939,1.28885974,1089.4,1080.2,0.59790236]
[1760134749143,3.43695931,1089.0,1080.3,0.51180038]
[1760134749442,1.28885974,1088.6,1079.4,0.59790236]
[1760134749642,6.45977981,1088.5,1079.5,0.50893721]
[1760134749840,1.28885974,1088.3,1079.0,0.59790236]
[1760134750040,3.0228205,1088.5,1079.4,0.59790236]
[1760134750339,1.28885974,1089.0,1079.6,0.59790236]
[1760134750537,1.28885974,1089.0,1079.7,0.50823342]
[1760134750740,1.28885974,1088.6,1079.8,0.50823342]
[1760134750940,3.43695931,1088.3,1079.0,0.59790236]
[1760134751139,3.43695931,1088.3,1078.5,0.59790236]
[1760134751140,1.28885974,1087.9,1078.5,0.59790236]
[1760134751343,2.14809957,1088.3,1079.1,0.59790236]
[1760134751840,2.14809957,1088.3,1078.5,1.1986844]
[1760134752041,2.14809957,1089.7,1080.5,0.58890001]
[1760134752239,2.14809957,1089.7,1080.6,1.14349122]
[1760134752439,4.3186483,1091.3,1080.6,1.14349122]
[1760134752440,2.14809957,1089.8,1081.2,0.58890001]
[1760134752641,2.14809957,1089.8,1081.3,0.55459121]
[1760134752840,2.14809957,1089.7,1081.4,0.55459121]
[1760134753038,2.14809957,1089.7,1081.0,0.58890001]
[1760134753241,2.14809957,1089.7,1080.6,0.58890001]
[1760134753445,5.17092007,1089.2,1080.6,1.14642692]
[1760134753740,5.17092007,1089.2,1079.7,0.58890001]
[1760134753940,2.14809957,1089.0,1079.0,0.58890001]
[1760134754140,2.14809957,1089.0,1079.1,0.55859856]
[1760134754343,2.14809957,1089.0,1079.2,0.55859856]
[1760134754544,2.14809957,1087.6,1079.3,0.55859856]
[1760134754843,2.14809957,1087.6,1077.8,0.58890001]
[1760134755041,2.14809957,1087.5,1077.8,0.58890001]
[1760134755239,2.14809957,1087.5,1077.4,0.78520001]
[1760134755240,2.14809957,1087.5,1077.9,0.55609246]
[1760134755444,2.14809957,1087.5,1077.0,0.58890001]
[1760134755646,2.14809957,1087.0,1077.1,0.54904213]
[1760134755845,2.14809957,1087.0,1077.2,0.54904213]
[1760134756141,2.14809957,1085.6,1076.5,0.58890001]
[1760134756340,2.14809957,1085.6,1076.6,0.54730355]
[1760134756541,2.14809957,1085.6,1076.2,0.58890001]
[1760134756742,2.14809957,1085.5,1076.3,0.54645816]
[1760134756942,2.14809957,1085.5,1076.4,0.54645816]
[1760134757140,2.14809957,1085.8,1076.5,0.54645816]
[1760134757341,2.14809957,1085.8,1076.0,0.58890001]
[1760134757745,2.14809957,1085.8,1076.1,0.54458148]
[1760134757943,5.17092007,1086.1,1076.2,1.13788152]
[1760134758142,5.17092007,1086.1,1076.3,0.54458148]
[1760134758343,2.14809957,1086.1,1075.2,0.59330004]
[1760134758543,2.14809957,1083.3,1073.4,0.59330004]
[1760134758946,4.28618938,1082.7,1072.4,0.59330004]
[1760134759246,4.28618938,1082.7,1071.9,0.59330004]
[1760134759443,2.13808981,1082.3,1071.6,0.59330004]
[1760134759845,2.13808981,1082.1,1069.9,1.17780002]
[1760134760047,4.28618938,1081.9,1069.7,1.17780002]
[1760134760248,4.28618938,1081.9,1069.5,1.17780002]
[1760134760445,4.28618938,1082.0,1069.4,1.17780002]
[1760134760644,2.14809957,1082.0,1069.6,1.17780002]
[1760134760846,4.28618938,1082.0,1069.5,1.17780002]
[1760134761049,2.13808981,1081.6,1069.0,1.17780002]
[1760134761246,2.13808981,1081.9,1069.0,1.17780002]
[1760134761549,2.13808981,1081.4,1068.9,1.17780002]
[1760134761750,4.28618938,1081.5,1068.9,1.17780002]
[1760134761946,4.28618938,1081.5,1069.0,1.17780002]
[1760134762145,3.0228205,1081.8,1069.4,1.17780002]
[1760134762345,2.13808981,1081.5,1068.8,1.17780002]
[1760134762545,2.13808981,1081.6,1068.9,1.17780002]
[1760134762746,4.28618938,1081.6,1068.9,1.17780002]
[1760134763048,7.30900988,1081.7,1069.2,1.17780002]
[1760134763249,2.13808981,1081.5,1069.1,1.17780002]
[1760134764048,4.3186483,1082.7,1063.9,6.3929836]
[1760134765752,7.06614227,1081.9,1068.0,1.9305382]
[1760134765949,2.909588,1081.9,1068.0,1.9305382]
[1760134766251,2.07827717,1082.4,1068.0,1.9305382]
[1760134766547,2.07827717,1082.6,1067.6,4.6332917]
[1760134766851,4.15655427,1082.8,1067.6,4.6332917]
[1760134767051,2.07827717,1082.5,1068.3,1.9305382]
[1760134767351,2.07827717,1081.6,1065.9,6.1777224]
[1760134767547,2.07827717,1081.6,1066.0,1.9305382]
[1760134767747,0.83131087,1081.4,1066.0,1.9305382]